bitfinex-derivatives/quotes_ETHF0:USTF0_20240826
["timestamp","ask_amount","ask_price","bid_price","bid_amount"]
[1724638655877,0.73609,2746.2,2746.0,3.15]
[1724638656980,0.3721,2746.2,2746.0,3.51401]
[1724638657482,0.004505,2746.3,2746.0,3.15]
[1724638657666,0.004505,2746.3,2746.1,0.36399]
[1724638657867,0.004505,2746.3,2746.1,0.364]
[1724638658073,0.004505,2746.3,2746.2,0.36399]
[1724638658372,0.004505,2746.3,2746.1,0.36399]
[1724638658777,0.004505,2746.3,2746.0,3.51401]
[1724638659374,0.368475,2746.3,2746.0,3.15]
[1724638659778,0.7201,2746.2,2746.0,3.15]
[1724638659981,0.004505,2746.3,2746.1,0.92164892]
[1724638660172,0.004505,2746.3,2746.0,3.15]
[1724638660376,0.004505,2746.3,2746.1,0.55764469]
[1724638660575,0.004505,2746.3,2746.0,3.15]
[1724638660878,0.004505,2746.3,2746.1,0.92164189]
[1724638661082,0.004505,2746.3,2746.1,0.364]
[1724638663371,0.004505,2746.3,2746.2,3.57179]
[1724638663573,0.004505,2746.3,2746.2,4.12940369]
[1724638663774,0.372,2746.9,2746.2,16.22952902]
[1724638663982,0.3705,2747.0,2746.6,3.15]
[1724638664281,0.7477,2747.3,2746.9,3.51389]
[1724638664481,1.48205,2747.3,2746.9,3.15]
[1724638664785,1.12230661,2747.3,2746.9,3.15]
[1724638664980,1.48614661,2747.3,2746.9,3.15]
[1724638665289,0.36386,2747.2,2746.9,3.15]
[1724638665578,0.36387,2747.1,2746.7,0.7598]
[1724638666283,0.36388,2747.0,2746.7,0.7598]
[1724638666783,0.3599,2746.9,2746.7,0.7598]
[1724638666980,0.3599,2746.9,2746.7,1.12372]
[1724638667184,0.3599,2746.9,2746.7,0.7598]
[1724638670285,0.7238,2746.9,2746.7,0.7598]
[1724638670486,0.7238,2746.9,2746.7,0.3761]
[1724638671985,0.3599,2746.9,2746.7,0.3761]
[1724638672882,0.7238,2746.9,2746.7,0.3761]
[1724638673586,0.3599,2746.9,2746.7,0.3761]
[1724638674585,0.3599,2746.9,2746.7,0.74001]
[1724638674782,0.36386,2747.2,2746.7,0.3761]
[1724638674984,0.36386,2747.2,2746.9,3.51389]
[1724638674985,0.3813,2747.2,2746.9,3.51389]
[1724638675188,0.74515,2747.2,2746.9,3.51389]
[1724638675383,0.3813,2747.2,2746.9,3.51389]
[1724638676584,0.3813,2747.2,2746.9,3.15]
[1724638677386,0.3813,2747.2,2746.9,3.51389]
[1724638678490,0.3813,2747.2,2746.9,3.15]
[1724638679586,0.74515,2747.2,2746.7,0.3761]
[1724638679781,0.74515,2747.2,2746.7,0.74002]
[1724638681390,0.74515,2747.2,2746.8,0.36391]
[1724638681592,0.3813,2747.2,2746.8,0.36391]
[1724638681786,0.3813,2747.2,2746.9,0.3785]
[1724638681991,0.36387,2747.1,2746.7,0.74001]
[1724638682193,0.36387,2747.1,2746.7,0.3761]
[1724638682583,0.36387,2747.1,2746.7,0.74002]
[1724638683194,0.3813,2747.2,2746.7,0.3761]
[1724638683389,0.36389,2747.0,2746.7,0.3761]
[1724638683984,0.36387,2747.1,2746.7,0.74002]
[1724638684188,0.36389,2747.0,2746.7,0.3761]
[1724638684387,0.36389,2746.9,2746.7,0.3761]
[1724638684596,0.36391,2746.8,2746.7,0.3761]
[1724638684798,0.74831,2746.8,2746.7,0.3761]
[1724638686191,0.36393,2746.6,2746.5,0.00546607]
[1724638687793,4.00473,2746.6,2746.5,0.00546607]
[1724638688498,1.08293,2746.7,2746.5,0.00546607]
[1724638689185,3.2078,2747.2,2746.5,0.00546607]
[1724638689385,1.08,2747.1,2746.6,3.15]
[1724638689591,0.36388,2747.0,2746.7,0.7396]
[1724638690299,10.32029082,2747.1,2746.7,0.7396]
[1724638690300,10.68416082,2747.1,2746.7,0.7396]
[1724638690995,0.36388,2747.0,2746.7,0.7396]
[1724638691200,0.36388,2747.0,2746.7,0.3677]
[1724638692388,10.68416082,2747.1,2746.7,0.3677]
[1724638692594,1.44387,2747.1,2746.8,0.3534]
[1724638692798,0.36388,2747.0,2746.8,0.3534]
[1724638693497,1.08,2747.1,2746.6,3.15]
[1724638693699,0.36392,2746.7,2746.6,3.15]
[1724638694098,0.36393,2746.6,2746.5,0.00546607]
[1724638694299,1.45983,2746.6,2746.5,0.00546607]
[1724638698198,1.0959,2746.6,2746.5,0.00546607]
[1724638698405,0.3695,2746.6,2746.5,0.00546607]
[1724638698600,0.73343,2746.6,2746.5,0.00546607]
[1724638701412,0.36393,2746.7,2746.5,0.00546607]
[1724638702008,0.3598,2746.8,2746.5,0.36941607]
[1724638702207,3.2078,2747.2,2746.6,3.15]
[1724638702508,0.36389,2746.9,2746.6,3.51393]
[1724638702710,0.36392,2746.7,2746.6,3.15]
[1724638702911,0.90971,2747.0,2746.5,0.00546607]
[1724638703214,0.36392,2746.8,2746.5,0.36940607]
[1724638703808,0.3639,2746.9,2746.5,0.36940607]
[1724638704115,0.36389,2747.0,2746.7,0.36392]
[1724638704308,0.36389,2747.0,2746.8,0.7642]
[1724638705916,0.00410661,2747.3,2746.8,0.7642]
[1724638705917,0.00410661,2747.3,2746.9,10.92557346]
[1724638706217,0.00410661,2747.3,2747.2,3.15]
[1724638706419,0.00410661,2747.3,2747.2,3.70757346]
[1724638706713,0.00410661,2747.3,2747.2,3.15]
[1724638706921,0.00410661,2747.3,2747.2,3.5046]
[1724638707414,0.00410661,2747.3,2746.9,3.5772]
[1724638707415,0.00410661,2747.3,2746.9,4.47270272]
[1724638707614,0.36795661,2747.3,2746.9,3.8692]
[1724638708119,0.36795661,2747.3,2746.9,5.18639272]
[1724638708711,0.36386,2747.2,2746.9,5.18639272]
[1724638709822,0.36795661,2747.3,2746.9,5.18639272]
[1724638710510,0.3724,2747.2,2746.9,5.18639272]
[1724638711219,0.00410661,2747.3,2747.2,0.36385]
[1724638711520,0.00410661,2747.3,2747.1,0.36386]
[1724638713822,0.00410661,2747.3,2747.2,0.73745]
[1724638714019,0.00410661,2747.3,2747.2,0.3736]
[1724638715922,0.00410661,2747.3,2747.1,0.36386]
[1724638715923,0.36794661,2747.3,2747.1,0.36386]
[1724638716117,0.72824661,2747.3,2747.0,0.36387]
[1724638716308,0.7455,2747.2,2747.0,0.36387]
[1724638716712,0.7455,2747.2,2746.9,8.40390272]
[1724638716713,0.7455,2747.2,2747.1,0.36387]
[1724638717215,0.7455,2747.2,2747.0,0.36388]
[1724638717419,0.7455,2747.2,2746.9,4.23729]
[1724638717722,0.74916,2747.2,2746.9,4.23729]
[1724638719018,0.36388,2747.0,2746.9,3.15]
[1724638719821,0.36388,2747.0,2746.7,4.92651]
[1724638720131,0.72377,2747.1,2746.8,0.36391]
[1724638720309,0.36388,2747.0,2746.7,4.92651]
[1724638720512,0.72377,2747.1,2746.8,0.36391]
[1724638721828,0.36388,2747.0,2746.7,4.92651]
[1724638722022,0.3592,2746.9,2746.7,4.92651]
[1724638722418,0.3768,2746.8,2746.7,0.73151]
[1724638722720,0.3768,2746.8,2746.7,1.28908879]
[1724638723315,0.3768,2746.8,2746.7,0.3676]
[1724638723523,0.3768,2746.8,2746.7,1.28909195]
[1724638723712,0.7231,2746.9,2746.7,0.92517195]
[1724638723919,1.0941,2746.9,2746.7,0.3676]
[1724638724114,0.7302,2746.9,2746.7,0.73152]
[1724638724718,0.371,2746.9,2746.8,0.36391]
[1724638724930,0.72377,2747.1,2746.8,0.55755842]
[1724638725116,0.72377,2747.1,2746.9,3.51389]
[1724638725622,0.7306,2747.2,2746.9,3.15]
[1724638726121,0.371,2747.2,2747.1,0.36387]
[1724638726517,0.371,2747.2,2747.1,1.07737]
[1724638726918,0.371,2747.2,2747.1,0.7135]
[1724638729032,0.371,2747.2,2747.1,0.3497]
[1724638729728,0.73485,2747.2,2747.1,0.3497]
[1724638730735,0.36376,2748.0,2747.5,0.36381]
[1724638731028,1.45126,2747.9,2747.6,0.3842]
[1724638731220,1.0875,2747.9,2747.6,0.3842]
[1724638731426,1.45127,2747.9,2747.6,0.3842]
[1724638731823,1.45127,2747.9,2747.6,0.00429565]
[1724638731824,0.36379,2747.7,2747.6,0.00429565]
[1724638732528,0.36383,2747.4,2747.1,3.2078]
[1724638732729,1.1208,2747.3,2747.1,3.2078]
[1724638733526,1.1208,2747.3,2747.1,3.21149781]
[1724638733727,1.48465,2747.3,2747.1,0.00369781]
[1724638733938,1.1208,2747.3,2747.1,0.00369781]
[1724638734433,1.48464,2747.3,2747.1,0.00369781]
[1724638735131,1.1208,2747.3,2747.1,0.00369781]
[1724638738038,1.1208,2747.3,2747.2,1.31]
[1724638740930,5.12464,2747.3,2747.2,1.31]
[1724638742038,3.64,2747.2,2746.5,0.00546607]
[1724638742239,0.36393,2746.6,2746.5,0.00546607]
[1724638742536,0.364,2746.1,2745.9,1.31]
[1724638742739,0.72111,2746.0,2745.7,1.31]
[1724638742940,0.36403,2745.9,2745.7,1.31]
[1724638743239,3.2078,2745.8,2745.7,0.00356048]
[1724638743439,16.35158322,2745.8,2745.7,0.00356048]
[1724638743739,12.34594322,2745.8,2745.7,1.31356048]
[1724638743935,15.98754322,2745.8,2745.7,1.31356048]
[1724638744131,15.98754322,2745.8,2745.7,0.00356048]
[1724638744437,16.35158322,2745.8,2745.7,0.00356048]
[1724638744634,12.34594322,2745.8,2745.7,0.00356048]
[1724638745637,12.70998322,2745.8,2745.7,0.00356048]
[1724638745843,16.35158322,2745.8,2745.7,0.00356048]
[1724638746150,16.70978322,2745.8,2745.7,0.00356048]
[1724638746931,13.50198322,2745.8,2745.7,0.00356048]
[1724638747138,16.70978322,2745.8,2745.7,0.00356048]
[1724638748133,16.70978322,2745.8,2745.5,0.00546607]
[1724638748134,0.36407,2745.6,2745.5,0.00546607]
[1724638748338,0.36414,2745.1,2744.7,3.15]
[1724638748650,3.2078,2744.9,2744.6,0.7072]
[1724638748938,3.2078,2744.9,2744.7,3.51418]
[1724638749145,0.36411,2745.3,2744.7,3.51418]
[1724638749337,0.36412,2745.2,2744.7,3.15546607]
[1724638752242,0.36412,2745.2,2744.7,3.51964607]
[1724638753340,10.08336358,2745.3,2744.7,3.51964607]
[1724638753541,9.34066358,2745.3,2744.7,3.51964607]
[1724638754345,0.36412,2745.2,2744.7,3.51964607]
[1724638756640,9.34066358,2745.3,2744.7,3.51964607]
[1724638756840,0.36412,2745.2,2744.7,3.51964607]
[1724638757041,9.34066358,2745.3,2744.7,3.51964607]
[1724638757351,9.34066358,2745.3,2744.8,0.36417]
[1724638758246,9.34066358,2745.3,2744.7,3.51963607]
[1724638758841,0.36412,2745.2,2744.7,3.51963607]
[1724638759041,8.97655358,2745.3,2744.7,3.15546607]
[1724638759238,0.36414,2745.1,2744.7,3.15546607]
[1724638759446,0.36415,2745.0,2744.7,3.15546607]
[1724638759753,0.74225,2745.0,2744.7,0.00546607]
[1724638759940,0.3781,2745.0,2744.7,0.00546607]
[1724638760348,0.74225,2745.0,2744.7,0.00546607]
[1724638760539,0.3781,2745.0,2744.7,0.00546607]
[1724638761650,0.74225,2745.0,2744.7,0.00546607]
[1724638762350,0.3781,2745.0,2744.7,0.36964607]
[1724638762544,0.36414,2745.1,2744.7,0.36964607]
[1724638763154,0.36415,2745.0,2744.7,0.00546607]
[1724638765150,0.36417,2744.8,2744.7,0.00546607]
[1724638765952,0.36417,2744.9,2744.7,0.00546607]
[1724638766850,12.45063358,2745.1,2744.7,0.00546607]
[1724638766851,0.36417,2744.8,2744.7,0.00546607]
[1724638767757,0.36417,2744.9,2744.7,0.00546607]
[1724638772164,0.36417,2744.9,2744.8,1.31]
[1724638775459,0.36417,2744.8,2744.7,1.31546607]
[1724638775661,4.31627,2744.8,2744.7,1.31546607]
[1724638775960,7.95947,2744.8,2744.7,1.31546607]
[1724638776178,7.95947,2744.8,2744.7,0.00546607]
[1724638776354,0.36419,2744.7,2744.6,0.00432501]
[1724638776554,5.67399,2744.7,2744.6,0.00432501]
[1724638776754,10.67399,2744.7,2744.6,0.00432501]
[1724638777760,9.36399,2744.7,2744.6,0.00432501]
[1724638778854,4.36399,2744.7,2744.6,0.00432501]
[1724638779262,7.57179,2744.7,2744.6,0.00432501]
[1724638787467,8.48226,2744.7,2744.6,0.00432501]
[1724638787663,17.59339517,2744.7,2744.6,0.00432501]
[1724638788678,17.59339517,2744.7,2744.6,1e-08]
[1724638788874,17.59339517,2744.7,2743.6,4.10330272]
[1724638788875,0.36428,2744.0,2743.6,0.36433]
[1724638789064,0.36428,2744.0,2743.7,0.3557]
[1724638789270,0.3524,2743.9,2743.7,0.3557]
[1724638789775,0.35546679,2743.9,2743.7,0.35899593]
[1724638791072,0.71975679,2743.9,2743.7,0.35899593]
[1724638791272,0.3643,2743.8,2743.7,0.35899593]
[1724638791579,0.7437,2743.8,2743.7,0.00329593]
[1724638792178,7.5963,2743.8,2743.7,0.00329593]
[1724638792878,3.9515,2743.8,2743.7,0.00329593]
[1724638793273,3.2078,2743.8,2743.7,0.00329593]
[1724638793470,3.5721,2743.8,2743.7,0.00329593]
[1724638797676,8.12767,2743.8,2743.7,0.00329593]
[1724638798693,7.2169,2743.8,2743.7,0.00329593]
[1724638800070,17.46913495,2743.8,2743.7,0.00329593]
[1724638800477,0.36433,2743.6,2743.5,0.00546607]
[1724638800786,1.67433,2743.6,2743.5,0.00546607]
[1724638800974,5.31913,2743.6,2743.5,0.00546607]
[1724638801284,5.67843,2743.6,2743.5,0.00546607]
[1724638801481,2.03363,2743.6,2743.5,0.00888154]
[1724638802884,0.72363,2743.6,2743.5,0.00888154]
[1724638804688,0.36433,2743.6,2743.5,0.00888154]
[1724638804888,5.31913,2743.6,2743.5,0.00888154]
[1724638805279,1.67433,2743.6,2743.5,0.00888154]
[1724638805778,0.36433,2743.6,2743.5,0.00888154]
[1724638807877,0.36433,2743.6,2743.0,0.3644]
[1724638807878,0.36444,2742.8,2742.5,3.2078]
[1724638808188,1.67445,2742.7,2742.6,0.3641]
[1724638808486,13.74184351,2742.7,2741.9,3.2078]
[1724638808678,1.67452,2742.2,2742.0,0.7471]
[1724638808880,1.31,2742.2,2742.0,0.75031065]
[1724638809081,1.67452,2742.2,2742.0,0.75031065]
[1724638809386,1.31,2742.2,2742.0,0.75031065]
[1724638810086,3.21326607,2742.4,2742.0,0.75031065]
[1724638810294,0.36451,2742.3,2742.0,0.75031065]
[1724638810982,3.21326607,2742.4,2742.0,0.75031065]
[1724638810983,0.36452,2742.2,2742.0,0.75031065]
[1724638811890,9.57737864,2742.3,2742.0,0.75031065]
[1724638812083,9.21286864,2742.3,2742.0,1.11485065]
[1724638812285,3.57776607,2742.4,2742.0,0.75031065]
[1724638812481,0.36451,2742.3,2742.0,0.75031065]
[1724638812984,3.57776607,2742.4,2742.0,0.75031065]
[1724638813180,0.3645,2742.3,2742.0,0.75031065]
[1724638813980,3.57776607,2742.4,2742.0,0.75031065]
[1724638814195,3.57776607,2742.4,2742.0,1.11485065]
[1724638814396,3.57776607,2742.4,2742.0,0.75031065]
[1724638814790,0.36451,2742.3,2742.0,0.75031065]
[1724638815097,3.21326607,2742.4,2742.0,0.75031065]
[1724638815288,0.36453,2742.1,2742.0,0.75031065]
[1724638815689,9.4115338,2742.1,2742.0,0.75031065]
[1724638815989,12.6193338,2742.1,2742.0,0.75031065]
[1724638816696,0.36462,2741.5,2740.8,3.15]
[1724638816896,0.36462,2741.5,2741.2,0.3755]
[1724638817205,0.36462,2741.5,2741.0,0.36467]
[1724638817206,9.25801667,2741.4,2741.0,4.18480902]
[1724638817492,3.2078,2741.1,2740.8,0.3881]
[1724638817698,0.36469,2740.9,2740.8,0.00408994]
[1724638817996,9.34029473,2740.9,2740.8,0.00408994]
[1724638818997,12.98909473,2740.9,2740.8,0.00408994]
[1724638819197,12.98909473,2740.9,2740.0,0.2]
[1724638819198,3.6488,2740.8,2740.0,0.2]
[1724638819493,3.5726,2740.1,2740.0,0.2]
[1724638819796,3.5726,2740.1,2739.0,3.2078]
[1724638819797,15.30478296,2740.1,2739.0,3.2078]
[1724638819989,3.2078,2739.9,2739.0,6.3578]
[1724638820189,8.94698296,2740.1,2739.0,4.03254604]
[1724638820190,0.00546607,2739.7,2739.0,4.03254604]
[1724638820389,3.2078,2739.4,2739.0,0.00414972]
[1724638820592,3.2078,2739.1,2739.0,0.00414972]
[1724638820794,6.86273482,2739.1,2737.8,3.2078]
[1724638821105,12.34314702,2739.1,2738.4,0.36501]
[1724638821293,12.34314702,2739.1,2737.9,0.3586]
[1724638821294,3.2078,2738.8,2737.9,0.3586]
[1724638821493,3.2078,2738.8,2737.9,3.5086]
[1724638821688,9.24180814,2738.7,2738.0,4.12618463]
[1724638821894,3.57281,2738.5,2737.9,0.36258131]
[1724638822095,0.36505,2738.3,2737.9,0.00398131]
[1724638822294,3.2078,2738.1,2736.8,3.2078]
[1724638822495,3.15,2738.2,2736.9,0.36521]
[1724638822496,0.36514,2737.6,2736.9,0.36521]
[1724638822792,8.98788894,2737.5,2736.9,3.15]
[1724638823200,0.00547605,2737.5,2737.0,0.3652]
[1724638823498,0.00547605,2737.5,2737.1,0.36519]
[1724638823499,3.2078,2737.4,2737.1,0.36519]
[1724638823795,0.00547605,2737.5,2737.3,0.36517]
[1724638824000,0.00547605,2737.5,2737.0,4.17009973]
[1724638824001,0.00547605,2737.5,2737.4,0.36516]
[1724638824200,0.00547605,2737.5,2737.4,4.00936417]
[1724638824391,0.00547605,2737.5,2737.4,9.01796]
[1724638824603,0.00547605,2737.5,2737.4,3.6528]
[1724638824803,0.00547605,2737.5,2736.9,7.42212893]
[1724638825104,0.00547605,2737.5,2737.4,0.36516]
[1724638825295,0.00024991,2737.5,2737.4,0.36516]
[1724638825495,0.00024991,2737.5,2737.4,8.07888711]
[1724638825803,0.00024991,2737.5,2737.4,3.6528]
[1724638827006,0.00024991,2737.5,2737.4,4.01796]
[1724638827400,0.00024991,2737.5,2737.4,7.82546111]
[1724638827597,0.00024991,2737.5,2737.4,3.6528]
[1724638828207,0.00024991,2737.5,2737.3,0.36516]
[1724638828399,0.00024991,2737.5,2737.3,3.6528]
[1724638828799,0.00024991,2737.5,2737.3,4.01797]
[1724638829105,0.00024991,2737.5,2737.4,4.01796]
[1724638829301,0.00024991,2737.5,2737.4,8.16815906]
[1724638829500,0.00024991,2737.5,2737.4,4.01796]
[1724638829812,3.2078,2738.4,2737.8,0.3651]
[1724638830001,3.2078,2738.4,2737.7,3.2078]
[1724638830199,9.26047738,2738.3,2737.8,0.3651]
[1724638830399,3.2078,2738.7,2737.8,4.20423399]
[1724638830702,3.2078,2738.4,2737.9,0.36508]
[1724638830904,0.00547605,2738.4,2737.7,3.2078]
[1724638831208,0.00547605,2738.4,2737.8,3.80926585]
[1724638831707,3.57830605,2738.4,2737.7,0.36511]
[1724638831899,3.57830605,2738.4,2737.5,0.3529]
[1724638831900,3.2078,2738.1,2737.5,0.3529]
[1724638832098,3.2078,2738.1,2737.3,0.3528]
[1724638832099,3.2078,2737.8,2737.3,0.3528]
[1724638832308,3.2078,2737.8,2737.1,3.57299]
[1724638832509,3.2078,2737.5,2736.9,0.37312893]
[1724638832806,9.57400461,2737.9,2737.2,0.37043939]
[1724638833114,9.01913502,2737.6,2737.2,0.00525939]
[1724638833413,9.01913502,2737.7,2737.2,0.37043939]
[1724638833602,9.01913502,2737.7,2737.2,0.00525939]
[1724638833910,3.2078,2738.2,2737.4,3.2078]
[1724638834403,0.36507,2738.1,2737.4,3.57294]
[1724638834602,12.21446807,2738.2,2737.4,3.2078]
[1724638835103,12.21446807,2738.2,2737.8,0.36509]
[1724638835300,12.21446807,2738.2,2737.4,3.2078]
[1724638835301,12.57951807,2738.2,2737.4,3.2078]
[1724638835506,12.57952807,2738.2,2737.5,0.36513]
[1724638835703,12.21446807,2738.2,2737.4,3.2078]
[1724638835897,12.21446807,2738.2,2737.9,0.36508]
[1724638836095,12.21446807,2738.2,2737.8,3.2078]
[1724638836096,12.21446807,2738.2,2737.8,3.5729]
[1724638836406,0.00547605,2738.4,2738.1,0.36506]
[1724638836711,0.00547605,2738.4,2738.0,0.36508]
[1724638836899,0.00547605,2738.4,2737.9,4.50112982]
[1724638837504,0.00547605,2738.4,2738.0,0.36507]
[1724638837704,0.00547605,2738.4,2737.9,4.50112982]
[1724638838102,3.21327605,2738.4,2737.9,4.13604982]
[1724638838305,3.21327605,2738.4,2737.8,3.2078]
[1724638838511,0.36507,2738.1,2737.8,3.2078]
[1724638838902,0.36506,2738.2,2737.8,3.2078]
[1724638839117,9.09343317,2738.3,2737.8,3.2078]
[1724638839311,9.09343317,2738.3,2737.4,3.2078]
[1724638839508,0.36508,2738.0,2737.4,3.57295]
[1724638839712,3.57287,2738.1,2737.5,0.36514]
[1724638839906,3.57287,2738.1,2737.4,3.2078]
[1724638839907,3.2078,2738.1,2737.4,3.2078]
[1724638840213,0.72746,2738.2,2737.6,0.36512]
[1724638840606,9.15943375,2738.1,2737.7,0.36512]
[1724638840915,9.52450375,2738.1,2737.6,0.36512]
[1724638841115,9.15943375,2738.1,2737.4,3.2078]
[1724638841314,0.36509,2738.0,2737.4,3.57295]
[1724638841610,9.51823375,2738.1,2737.7,0.36511]
[1724638841814,9.88331375,2738.1,2737.4,3.2078]
[1724638842014,0.36511,2737.8,2737.3,0.36516]
[1724638842213,3.2078,2737.9,2737.2,0.00525939]
[1724638842409,0.36514,2737.6,2737.2,0.00525939]
[1724638842803,0.36513,2737.6,2737.2,0.00525939]
[1724638843207,0.36512,2737.7,2737.2,0.37043939]
[1724638843514,3.2078,2737.9,2737.2,0.00525939]
[1724638843515,0.36513,2737.6,2737.2,0.00525939]
[1724638845208,3.2078,2737.3,2737.2,0.00525939]
[1724638845412,4.21,2737.3,2735.9,3.2078]
[1724638845614,3.2078,2736.7,2735.9,3.2078]
[1724638845807,3.2078,2736.3,2735.9,3.2078]
[1724638846008,3.2078,2736.0,2734.4,3.2078]
[1724638846214,3.2078,2735.4,2734.4,3.2078]
[1724638846516,3.2078,2734.0,2731.7,2.65575286]
[1724638846715,12.63,2734.5,2729.3,0.95330272]
[1724638846716,11.6278,2731.8,2729.3,0.95330272]
[1724638846907,0.9147,2732.1,2726.3,4.36200261]
[1724638846908,3.2078,2728.5,2726.3,4.36200261]
[1724638847106,3.2078,2728.5,2726.0,3.2078]
[1724638847107,3.46443,2726.9,2726.6,3.2078]
[1724638847305,3.46443,2726.9,2725.5,1.87105187]
[1724638847306,4.21,2726.7,2725.5,1.87105187]
[1724638847514,4.21,2726.7,2725.1,21.99200933]
[1724638847515,3.2078,2726.2,2725.1,21.99200933]
[1724638847720,11.70342418,2726.7,2725.1,21.99200933]
[1724638847721,3.2078,2725.7,2725.1,21.99200933]
[1724638847907,0.00342418,2726.7,2725.1,21.99200933]
[1724638847908,9.36439965,2726.1,2725.1,21.99200933]
[1724638848103,3.84347587,2725.6,2725.4,3.2078]
[1724638848319,8.43811757,2726.5,2726.1,21.98330227]
[1724638848620,8.43811757,2726.5,2725.5,4.4]
[1724638848621,3.2078,2724.8,2723.8,0.30122433]
[1724638848808,7.6078,2723.7,2721.5,1.4048639]
[1724638849007,7.6078,2723.7,2720.0,0.23]
[1724638849008,6.042,2722.2,2721.6,25.44373261]
[1724638849219,3.2078,2722.6,2721.7,5.53397146]
[1724638849411,3.2078,2723.4,2722.5,1.8976816]
[1724638849607,0.00363587,2723.4,2722.5,0.00474514]
[1724638849808,0.00363587,2723.4,2719.5,0.368]
[1724638849809,3.2078,2722.7,2721.8,4.22438986]
[1724638850012,0.00550812,2722.4,2721.9,0.00550812]
[1724638850212,0.00550812,2722.4,2722.0,3.2078]
[1724638850419,1.23738044,2722.6,2722.0,3.2078]
[1724638850420,9.31093816,2722.3,2722.0,4.07069491]
[1724638850610,3.2078,2722.6,2722.0,25.44373261]
[1724638850921,0.00363587,2723.4,2722.5,3.2078]
[1724638851113,0.00363587,2723.4,2722.5,24.13735935]
[1724638851316,0.00363587,2723.4,2723.3,3.2078]
[1724638851515,3.2078,2724.3,2723.3,8.70638063]
[1724638851709,3.2078,2724.6,2723.3,28.21084638]
[1724638851915,3.2078,2724.3,2723.3,28.21084638]
[1724638852110,3.2078,2724.3,2723.8,0.05028356]
[1724638852311,3.2078,2724.6,2723.8,0.05028356]
[1724638852620,4.4,2726.3,2723.8,0.05028356]
[1724638852621,3.2078,2725.8,2724.2,3.2078]
[1724638852823,3.2078,2726.1,2724.6,3.2078]
[1724638853118,3.2078,2726.5,2725.7,3.2078]
[1724638853421,4.4,2727.3,2725.7,3.2078]
[1724638853422,3.2078,2726.8,2725.7,0.36672]
[1724638853619,0.00320405,2726.5,2725.8,4.39736124]
[1724638853827,0.00550812,2726.4,2725.9,6.8758]
[1724638854115,0.36638,2728.3,2725.9,6.8758]
[1724638854116,3.2078,2727.8,2726.2,3.2078]
[1724638854525,3.2078,2727.8,2726.3,4.17507459]
[1724638854727,3.2078,2727.8,2726.7,0.36659]
[1724638854923,3.2078,2727.0,2726.3,24.11950319]
[1724638855219,3.2078,2726.7,2726.6,0.05028356]
[1724638855611,6.875,2726.7,2726.6,0.05028356]
[1724638855818,0.36662,2726.5,2726.4,0.00550812]
[1724638856028,15.95435601,2726.7,2726.4,0.00550812]
[1724638856029,3.668,2726.6,2726.4,0.00550812]
[1724638856413,3.20779188,2726.4,2725.7,0.00345452]
[1724638856716,12.85184727,2726.5,2725.8,0.3667]
[1724638856717,3.2078,2726.5,2725.8,0.3667]
[1724638857026,9.18384727,2727.4,2725.7,24.12295771]
[1724638857027,3.2078,2726.8,2725.7,24.12295771]
[1724638857324,3.2078,2726.3,2725.8,4.13316806]
[1724638857521,0.00550812,2727.5,2725.8,4.13316806]
[1724638857522,3.2078,2726.2,2725.8,4.13316806]
[1724638857718,3.2078,2726.2,2725.7,0.00345452]
[1724638857913,3.2078,2725.9,2725.7,24.12295771]
[1724638858115,3.2078,2725.9,2725.7,24.12846583]
[1724638858822,3.2078,2725.9,2725.8,3.6688]
[1724638859125,0.00550812,2726.1,2726.0,0.36668]
[1724638859513,3.2078,2726.2,2726.0,33.15418319]
[1724638859826,3.2078,2726.2,2726.1,3.69391362]
[1724638860118,3.2078,2727.0,2726.1,3.69391362]
[1724638860321,0.36948817,2727.8,2726.9,3.2078]
[1724638860514,3.2078,2727.4,2726.9,15.28991319]
[1724638860910,3.2078,2727.5,2727.1,0.02591362]
[1724638861119,0.00550812,2727.6,2727.1,0.02591362]
[1724638861322,0.00550812,2727.6,2727.1,3.23371362]
[1724638861629,3.2078,2727.2,2727.1,0.02591362]
[1724638861926,0.00550812,2727.6,2727.1,0.02591362]
[1724638862312,0.00550812,2727.6,2727.1,15.31582681]
[1724638862511,0.00550812,2727.6,2727.3,3.2078]
[1724638862727,3.2078,2728.6,2727.5,0.36647]
[1724638863022,3.2078,2728.6,2728.0,0.02591362]
[1724638863023,9.06650591,2728.5,2728.0,0.02591362]
[1724638863420,3.2078,2728.6,2728.0,15.31582681]
[1724638863723,3.2078,2728.6,2728.0,15.68578021]
[1724638863724,3.21070064,2728.6,2728.0,15.68578021]
[1724638863919,0.00839857,2728.6,2728.3,3.2078]
[1724638864121,0.00839857,2728.6,2728.5,0.36635]
[1724638864319,0.00839857,2728.6,2728.4,0.36636]
[1724638864517,0.00839857,2728.6,2728.3,15.32132474]
[1724638865119,0.00839857,2728.6,2728.4,0.02591362]
[1724638865421,3.2078,2729.6,2728.8,0.36631]
[1724638865722,3.2078,2729.6,2728.8,15.28991319]
[1724638865723,9.17640245,2729.5,2728.8,15.28991319]
[1724638865914,9.17640245,2729.5,2728.9,3.2078]
[1724638866120,3.2078,2729.7,2728.9,14.99803925]
[1724638866417,0.00330188,2729.6,2728.9,14.99803925]
[1724638866728,4.53642079,2729.6,2728.9,18.20583925]
[1724638866926,4.53642079,2729.6,2729.0,0.36628]
[1724638867112,4.53642079,2729.6,2728.9,18.20583925]
[1724638867113,3.2078,2729.4,2728.9,3.2078]
[1724638867320,3.2078,2729.4,2728.3,8.00549793]
[1724638867520,8.20042079,2729.6,2728.3,8.00549793]
[1724638867521,9.19957876,2729.3,2728.7,3.2078]
[1724638867920,3.2078,2729.0,2728.3,0.00549793]
[1724638868111,3.2078,2728.6,2728.3,0.00549793]
[1724638868322,9.66815767,2728.9,2728.3,0.00549793]
[1724638868518,9.30185767,2728.5,2728.3,0.00549793]
[1724638868720,3.2078,2729.3,2728.3,15.00353718]
[1724638869023,9.30185767,2728.8,2728.3,0.00549793]
[1724638869228,9.66815767,2728.9,2728.3,0.00549793]
[1724638869229,9.30185767,2728.9,2728.3,15.00353718]